fUST/lending_fUST_20250601
["ID","MTS","AMOUNT","RATE_DAILY","PERIOD"]
[363423710,1748721040845,-430.0,0.00016712,2]
[363423712,1748721040855,-430.0,0.00016712,2]
[363423714,1748721040864,-470.0,0.00016712,2]
[363423715,1748721040874,-430.0,0.00016712,2]
[363423717,1748721040884,-430.0,0.00016712,2]
[363423719,1748721040894,-430.0,0.00016712,2]
[363423721,1748721040903,-696.83,0.00016712,2]
[363423723,1748721040913,-430.0,0.00016712,2]
[363423725,1748721040922,-302.48712963,0.00016712,2]
[363423727,1748721040931,-430.0,0.00016712,2]
[363423729,1748721040941,-788.56,0.00016712,2]
[363423731,1748721040951,-2114.45,0.00016712,2]
[363423733,1748721040960,-430.0,0.00016712,2]
[363423735,1748721040970,-430.0,0.00016712,2]
[363423737,1748721040981,-430.0,0.00016712,2]
[363423739,1748721040991,-210.45099177,0.00016712,2]
[363423811,1748721041685,-430.0,0.00016438,2]
[363423813,1748721041695,-430.0,0.00016438,2]
[363423815,1748721041705,-430.0,0.00016438,2]
[363423817,1748721041715,-219.54900823,0.00016712,2]
[363423819,1748721041724,-430.0,0.00016712,2]
[363423821,1748721041734,-430.0,0.00016712,2]
[363423823,1748721041744,-430.0,0.00016712,2]
[363423825,1748721041755,-1160.86,0.00016712,2]
[363423827,1748721041764,-657.57,0.00016712,2]
[363423829,1748721041773,-430.0,0.00016712,2]
[363423831,1748721041782,-430.0,0.00016712,2]
[363423833,1748721041792,-430.0,0.00016712,2]
[363423835,1748721041803,-500.0,0.00016829,2]
[363423837,1748721041812,-500.50871817,0.00016839,2]
[363423839,1748721041824,-501.11294187,0.00016886,2]
[363423841,1748721041835,-814.93536607,0.000169,2]
[363423843,1748721041845,-625.62677359,0.0001693,2]
[363423845,1748721041854,-500.0,0.0001693,2]
[363423847,1748721041863,-500.0,0.00016968,2]
[363423849,1748721041873,-22247.71982456,0.00016986,3]
[363423851,1748721041882,-14797.68362947,0.00016986,2]
[363423853,1748721041891,-314.84782018,0.00016986,3]
[363423855,1748721041900,-842.5625,0.00016986,3]
[363423857,1748721041910,-212.77096907,0.00016986,3]
[363423859,1748721041919,-430.0,0.00016986,2]
[363423861,1748721041929,-430.0,0.00016986,2]
[363423863,1748721041939,-430.0,0.00016986,2]
[363423865,1748721041949,-430.0,0.00016986,2]
[363423866,1748721041959,-430.0,0.00016986,2]
[363423868,1748721041968,-430.0,0.00016986,2]
[363423870,1748721041978,-260.0,0.00016986,2]
[363423872,1748721041987,-498.06,0.00016986,2]
[363423874,1748721041997,-166.87778559,0.00016986,2]
[363423876,1748721042006,-300.54687953,0.00016986,2]
[363423878,1748721042019,-408.6563908,0.00016986,2]
[363423880,1748721042028,-430.0,0.00016986,2]
[363423882,1748721042037,-430.0,0.00016986,2]
[363423884,1748721042046,-430.0,0.00016986,2]
[363423886,1748721042056,-430.0,0.00016986,2]
[363423888,1748721042066,-430.0,0.00016986,2]
[363423890,1748721042077,-430.0,0.00016986,2]
[363423892,1748721042086,-270.0,0.00016986,2]
[363423894,1748721042096,-430.0,0.00016986,2]
[363423896,1748721042105,-430.0,0.00016986,2]
[363423898,1748721042115,-430.0,0.00016986,2]
[363423900,1748721042126,-430.0,0.00016986,2]
[363423902,1748721042135,-430.0,0.00016986,2]
[363423904,1748721042144,-430.0,0.00016986,2]
[363423906,1748721042154,-430.0,0.00016986,2]
[363423908,1748721042163,-430.0,0.00016986,2]
[363423910,1748721042173,-430.0,0.00016986,2]
[363423912,1748721042183,-290.0,0.00016986,2]
[363423914,1748721042192,-182.09002681,0.00016986,2]
[363423916,1748721042202,-430.0,0.00016986,2]
[363423918,1748721042211,-430.0,0.00016986,2]
[363423920,1748721042221,-430.0,0.00016986,2]
[363423922,1748721042230,-221.48193332,0.00016986,2]
[363423924,1748721042239,-226.25348547,0.00016986,2]
[363423926,1748721042250,-430.0,0.00016986,2]
[363423928,1748721042259,-430.0,0.00016986,2]
[363423930,1748721042269,-430.0,0.00016986,2]
[363423932,1748721042279,-386.03243388,0.00016986,2]
[363423934,1748721042288,-430.0,0.00016986,2]
[363423936,1748721042298,-430.0,0.00016986,2]
[363423938,1748721042307,-430.0,0.00016986,2]
[363423940,1748721042316,-437.55,0.00016986,2]
[363423954,1748721042441,-430.0,0.00016986,2]
[363423956,1748721042451,-430.0,0.00016986,2]
[363423958,1748721042461,-430.0,0.00016986,2]
[363423960,1748721042471,-430.0,0.00016986,2]
[363423962,1748721042481,-430.0,0.00016986,2]
[363423964,1748721042491,-430.0,0.00016986,2]
[363423966,1748721042501,-430.0,0.00016986,2]
[363423968,1748721042512,-474.25543598,0.00016986,2]
[363423970,1748721042523,-430.0,0.00016986,2]
[363423972,1748721042532,-401.78388112,0.00016986,2]
[363423974,1748721042542,-430.0,0.00016986,2]
[363423976,1748721042553,-430.0,0.00016986,2]
[363423978,1748721042562,-430.0,0.00016986,2]
[363423979,1748721042572,-430.0,0.00016986,2]
[363423980,1748721042581,-430.0,0.00016986,2]
[363423981,1748721042590,-430.0,0.00016986,2]
[363423982,1748721042599,-430.0,0.00016986,2]
[363423983,1748721042608,-430.0,0.00016986,2]
[363423984,1748721042617,-430.0,0.00016986,2]
[363423985,1748721042626,-430.0,0.00016986,2]
[363423986,1748721042636,-450.0,0.00016986,2]
[363423987,1748721042648,-430.0,0.00016986,2]
[363423988,1748721042657,-430.0,0.00016986,2]
[363423989,1748721042666,-430.0,0.00016986,2]
[363423990,1748721042677,-430.0,0.00016986,2]
[363423991,1748721042686,-430.0,0.00016986,2]
[363423992,1748721042695,-430.0,0.00016986,2]
[363423993,1748721042704,-430.0,0.00016986,2]
[363423994,1748721042715,-430.0,0.00016986,2]
[363423995,1748721042724,-430.0,0.00016986,2]
[363423996,1748721042734,-430.0,0.00016986,2]
[363423997,1748721042743,-430.0,0.00016986,2]
[363423998,1748721042756,-430.0,0.00016986,2]
[363423999,1748721042765,-430.0,0.00016986,2]
[363424000,1748721042774,-430.0,0.00016986,2]
[363424001,1748721042783,-430.0,0.00016986,2]
[363424002,1748721042792,-430.0,0.00016986,2]
[363424003,1748721042801,-430.0,0.00016986,2]
[363424005,1748721042811,-430.0,0.00016986,2]
[363424006,1748721042820,-337.57045863,0.00016986,2]
[363424007,1748721042829,-430.0,0.00016986,2]
[363424009,1748721042838,-430.0,0.00016986,2]
[363424010,1748721042849,-430.0,0.00016986,2]
[363424012,1748721042858,-430.0,0.00016986,2]
[363424013,1748721042867,-980.1,0.00016986,2]
[363424015,1748721042876,-430.0,0.00016986,2]
[363424017,1748721042886,-430.0,0.00016986,2]
[363424019,1748721042896,-430.0,0.00016986,2]
[363424020,1748721042906,-430.0,0.00016986,2]
[363424023,1748721042919,-430.0,0.00016986,2]
[363424026,1748721042931,-430.0,0.00016986,2]
[363424029,1748721042942,-430.0,0.00016986,2]
[363424032,1748721042952,-430.0,0.00016986,2]
[363424035,1748721042962,-430.0,0.00016986,2]
[363424039,1748721042971,-430.0,0.00016986,2]
[363424043,1748721042981,-430.0,0.00016986,2]
[363424046,1748721042991,-430.0,0.00016986,2]
[363424051,1748721043001,-430.0,0.00016986,2]
[363424054,1748721043011,-1448.02,0.00016986,2]
[363424056,1748721043020,-430.0,0.00016986,2]
[363424058,1748721043031,-430.0,0.00016986,2]
[363424060,1748721043040,-1183.07,0.00016986,2]
[363424062,1748721043050,-1735.84,0.00016986,2]
[363424064,1748721043059,-1885.75,0.00016986,2]
[363424066,1748721043069,-430.0,0.00016986,2]
[363424068,1748721043079,-430.0,0.00016986,2]
[363424071,1748721043088,-2122.85,0.00016986,2]
[363424073,1748721043098,-430.0,0.00016986,2]
[363424075,1748721043107,-430.0,0.00016986,2]
[363424077,1748721043116,-430.0,0.00016986,2]
[363424079,1748721043126,-430.0,0.00016986,2]
[363424081,1748721043136,-445.17,0.00016986,2]
[363424083,1748721043145,-430.0,0.00016986,2]
[363424085,1748721043155,-3012.31,0.00016986,2]
[363424087,1748721043164,-430.0,0.00016986,2]
[363424089,1748721043173,-842.52,0.00016986,2]
[363424091,1748721043183,-430.0,0.00016986,2]
[363424093,1748721043194,-188.28,0.00016986,2]
[363424095,1748721043203,-430.0,0.00016986,2]
[363424097,1748721043213,-2477.92,0.00016986,2]
[363424099,1748721043221,-430.0,0.00016986,2]
[363424101,1748721043230,-430.0,0.00016986,2]
[363424103,1748721043240,-1209.38,0.00016986,2]
[363424105,1748721043249,-430.0,0.00016986,2]
[363424107,1748721043266,-430.0,0.00016986,2]
[363424109,1748721043283,-743.56,0.00016986,2]
[363424111,1748721043292,-430.0,0.00016986,2]
[363424113,1748721043302,-430.0,0.00016986,2]
[363424115,1748721043312,-430.0,0.00016986,2]
[363424117,1748721043322,-430.0,0.00016986,2]
[363424119,1748721043331,-430.0,0.00016986,2]
[363424121,1748721043341,-1121.54,0.00016986,2]
[363424123,1748721043351,-526.57333338,0.00016986,2]
[363424125,1748721043360,-187.750318,0.00016986,2]
[363424127,1748721043370,-430.0,0.00016986,2]
[363424129,1748721043380,-430.0,0.00016986,2]
[363424131,1748721043389,-187.750318,0.00016986,2]
[363424133,1748721043398,-1421.45,0.00016986,2]
[363424135,1748721043407,-430.0,0.00016986,2]
[363424137,1748721043417,-1689.57,0.00016986,2]
[363424139,1748721043426,-430.0,0.00016986,2]
[363424141,1748721043435,-529.62203708,0.00016986,2]
[363424143,1748721043444,-151.0,0.00016986,2]
[363424145,1748721043454,-450.0,0.00016986,2]
[363424147,1748721043463,-430.0,0.00016986,2]
[363424149,1748721043476,-430.0,0.00016986,2]
[363424152,1748721043493,-400.0,0.00016986,2]
[363424154,1748721043508,-430.0,0.00016986,2]
[363424159,1748721043521,-853.47,0.00016986,2]
[363424165,1748721043536,-430.0,0.00016986,2]
[363424169,1748721043551,-430.0,0.00016986,2]
[363424173,1748721043565,-430.0,0.00016986,2]
[363424177,1748721043581,-430.0,0.00016986,2]
[363424179,1748721043596,-430.0,0.00016986,2]
[363424182,1748721043610,-430.0,0.00016986,2]
[363424184,1748721043625,-696.83,0.00016986,2]
[363424188,1748721043639,-430.0,0.00016986,2]
[363424190,1748721043651,-430.0,0.00016986,2]
[363424192,1748721043665,-788.56,0.00016986,2]
[363424195,1748721043678,-2114.45,0.00016986,2]
[363424197,1748721043691,-430.0,0.00016986,2]
[363424199,1748721043703,-430.0,0.00016986,2]
[363424202,1748721043716,-430.0,0.00016986,2]
[363424204,1748721043729,-430.0,0.00016986,2]
[363424207,1748721043743,-430.0,0.00016986,2]
[363424209,1748721043761,-430.0,0.00016986,2]
[363424212,1748721043776,-430.0,0.00016986,2]
[363424214,1748721043790,-1160.86,0.00016986,2]
[363424217,1748721043806,-657.57,0.00016986,2]
[363424219,1748721043817,-430.0,0.00016986,2]
[363424221,1748721043829,-430.0,0.00016986,2]
[363424224,1748721043841,-430.0,0.00016986,2]
[363424226,1748721043856,-500.0,0.00017021,2]
[363424229,1748721043869,-2056.29148393,0.00017092,2]
[363424231,1748721043879,-814.93536587,0.00017176,2]
[363424233,1748721043893,-151.0,0.00017176,2]
[363424235,1748721043905,-314.5372,0.00017176,2]
[363424238,1748721043919,-314.5372,0.00017176,2]
[363424240,1748721043930,-277.170479,0.00017176,2]
[363424242,1748721043941,-277.170479,0.00017176,2]
[363424244,1748721043954,-151.0,0.00017176,2]
[363424247,1748721043966,-151.0,0.00017176,2]
[363424249,1748721043978,-500.0,0.00017179,2]
[363424251,1748721043990,-420.0,0.00017214,2]
[363424253,1748721044003,-430.0,0.0001726,2]
[363424256,1748721044017,-430.0,0.0001726,2]
[363424258,1748721044029,-430.0,0.0001726,2]
[363424260,1748721044041,-430.0,0.0001726,2]
[363424263,1748721044053,-464.23,0.0001726,2]
[363424265,1748721044065,-430.0,0.0001726,2]
[363424267,1748721044077,-430.0,0.0001726,2]
[363424269,1748721044090,-220.0,0.0001726,2]
[363424272,1748721044102,-430.0,0.0001726,2]
[363424274,1748721044114,-430.0,0.0001726,2]
[363424276,1748721044127,-430.0,0.0001726,2]
[363424278,1748721044139,-430.0,0.0001726,2]
[363424280,1748721044152,-430.0,0.0001726,2]
[363424283,1748721044163,-430.0,0.0001726,2]
[363424285,1748721044176,-430.0,0.0001726,2]
[363424287,1748721044189,-152.246054,0.0001726,2]
[363424290,1748721044201,-265.44399174,0.0001726,2]
[363424292,1748721044213,-430.0,0.0001726,2]
[363424294,1748721044225,-430.0,0.0001726,2]
[363424296,1748721044237,-151.0,0.0001726,2]
[363424299,1748721044250,-151.0,0.0001726,2]
[363424301,1748721044262,-430.0,0.0001726,2]
[363424303,1748721044275,-980.1,0.0001726,2]
[363424305,1748721044287,-211.80361192,0.0001726,2]
[363424308,1748721044299,-430.0,0.0001726,2]
[363424310,1748721044312,-430.0,0.0001726,2]
[363424312,1748721044324,-430.0,0.0001726,2]
[363424315,1748721044336,-430.0,0.0001726,2]
[363424317,1748721044348,-430.0,0.0001726,2]
[363424319,1748721044361,-430.0,0.0001726,2]
[363424321,1748721044373,-430.0,0.0001726,2]
[363424324,1748721044385,-430.0,0.0001726,2]
[363424326,1748721044398,-219.346504,0.0001726,2]
[363424328,1748721044413,-430.0,0.0001726,2]
[363424330,1748721044425,-1448.02,0.0001726,2]
[363424333,1748721044436,-219.346504,0.0001726,2]
[363424335,1748721044449,-430.0,0.0001726,2]
[363424337,1748721044459,-1183.07,0.0001726,2]
[363424339,1748721044469,-1735.84,0.0001726,2]
[363424341,1748721044484,-1885.75,0.0001726,2]
[363424343,1748721044494,-162.02514831,0.0001726,2]
[363424345,1748721044504,-2122.85,0.0001726,2]
[363424347,1748721044513,-194.80779855,0.0001726,2]
[363424349,1748721044523,-430.0,0.0001726,2]
[363424351,1748721044533,-151.0,0.0001726,2]
[363424353,1748721044543,-430.0,0.0001726,2]
[363424355,1748721044552,-372.95749568,0.0001726,2]
[363424357,1748721044562,-445.17,0.0001726,2]
[363424360,1748721044573,-430.0,0.0001726,2]
[363424362,1748721044583,-3012.31,0.0001726,2]
[363424363,1748721044593,-842.52,0.0001726,2]
[363424365,1748721044602,-430.0,0.0001726,2]
[363424367,1748721044612,-430.0,0.0001726,2]
[363424369,1748721044622,-2477.92,0.0001726,2]
[363424372,1748721044633,-430.0,0.0001726,2]
[363424373,1748721044643,-430.0,0.0001726,2]
[363424376,1748721044653,-1209.38,0.0001726,2]
[363424378,1748721044662,-430.0,0.0001726,2]
[363424380,1748721044671,-743.56,0.0001726,2]
[363424382,1748721044681,-430.0,0.0001726,2]
[363424384,1748721044691,-430.0,0.0001726,2]
[363424408,1748721044905,-340.5613627,0.0001726,2]
[363424411,1748721044923,-430.0,0.0001726,2]
[363424413,1748721044935,-1121.54,0.0001726,2]
[363424415,1748721044944,-430.0,0.0001726,2]
[363424417,1748721044954,-430.0,0.0001726,2]
[363424419,1748721044964,-1421.45,0.0001726,2]
[363424421,1748721044973,-1689.57,0.0001726,2]
[363424423,1748721044983,-853.47,0.0001726,2]
[363424425,1748721044992,-430.0,0.0001726,2]
[363424427,1748721045001,-430.0,0.0001726,2]
[363424429,1748721045011,-335.29355329,0.0001726,2]
[363424431,1748721045019,-430.0,0.0001726,2]
[363424433,1748721045029,-430.0,0.0001726,2]
[363424435,1748721045039,-696.83,0.0001726,2]
[363424437,1748721045049,-430.0,0.0001726,2]
[363424439,1748721045059,-2114.45,0.0001726,2]
[363424441,1748721045069,-179.188302,0.0001726,2]
[363424442,1748721045079,-430.0,0.0001726,2]
[363424445,1748721045090,-430.0,0.0001726,2]
[363424447,1748721045100,-430.0,0.0001726,2]
[363424449,1748721045110,-430.0,0.0001726,2]
[363424451,1748721045120,-1160.86,0.0001726,2]
[363424453,1748721045129,-657.57,0.0001726,2]
[363424455,1748721045140,-430.0,0.0001726,2]
[363424456,1748721045152,-430.0,0.0001726,2]
[363424458,1748721045161,-379.95923803,0.00017442,2]
[363424460,1748721045170,-814.93536587,0.00017452,2]
[363424462,1748721045180,-500.84810147,0.00017478,2]
[363424464,1748721045189,-430.0,0.00017534,2]
[363424466,1748721045199,-430.0,0.00017534,2]
[363424468,1748721045208,-430.0,0.00017534,2]
[363424470,1748721045217,-430.0,0.00017534,2]
[363424472,1748721045227,-430.0,0.00017534,2]
[363424474,1748721045237,-151.0,0.00017534,2]
[363424476,1748721045247,-151.0,0.00017534,2]
[363424478,1748721045257,-153.418591,0.00017534,2]
[363424480,1748721045268,-430.0,0.00017534,2]
[363424482,1748721045278,-151.0,0.00017534,2]
[363424484,1748721045287,-430.0,0.00017534,2]
[363424486,1748721045297,-210.1771151,0.00017534,2]
[363424488,1748721045306,-430.0,0.00017534,2]
[363424489,1748721045315,-190.996215,0.00017534,2]
[363424490,1748721045325,-190.996215,0.00017534,2]
[363424491,1748721045334,-430.0,0.00017534,2]
[363424492,1748721045344,-151.611832,0.00017534,2]
[363424493,1748721045353,-430.0,0.00017534,2]
[363424494,1748721045363,-980.1,0.00017534,2]
[363424495,1748721045372,-151.0,0.00017534,2]
[363424497,1748721045382,-430.0,0.00017534,2]
[363424499,1748721045392,-446.26953809,0.00017534,2]
[363424501,1748721045401,-430.0,0.00017534,2]
[363424503,1748721045411,-430.0,0.00017534,2]
[363424505,1748721045420,-430.0,0.00017534,2]
[363424507,1748721045430,-430.0,0.00017534,2]
[363424509,1748721045439,-430.0,0.00017534,2]
[363424511,1748721045449,-430.0,0.00017534,2]
[363424513,1748721045458,-1448.02,0.00017534,2]
[363424515,1748721045467,-430.0,0.00017534,2]
[363424517,1748721045476,-1183.07,0.00017534,2]
[363424519,1748721045486,-1735.84,0.00017534,2]
[363424521,1748721045495,-1885.75,0.00017534,2]
[363424523,1748721045504,-2122.85,0.00017534,2]
[363424525,1748721045513,-430.71,0.00017534,2]
[363424527,1748721045521,-430.0,0.00017534,2]
[363424529,1748721045530,-445.17,0.00017534,2]
[363424531,1748721045539,-430.0,0.00017534,2]
[363424533,1748721045548,-3012.31,0.00017534,2]
[363424535,1748721045557,-842.52,0.00017534,2]
[363424537,1748721045566,-430.0,0.00017534,2]
[363424539,1748721045575,-430.0,0.00017534,2]
[363424541,1748721045584,-2477.92,0.00017534,2]
[363424543,1748721045593,-430.0,0.00017534,2]
[363424545,1748721045602,-495.16197531,0.00017534,2]
[363424547,1748721045611,-1209.38,0.00017534,2]
[363424549,1748721045619,-430.0,0.00017534,2]
[363424551,1748721045627,-743.56,0.00017534,2]
[363424552,1748721045636,-430.0,0.00017534,2]
[363424554,1748721045645,-430.0,0.00017534,2]
[363424556,1748721045654,-430.0,0.00017534,2]
[363424558,1748721045663,-1121.54,0.00017534,2]
[363424561,1748721045675,-430.0,0.00017534,2]
[363424563,1748721045684,-430.0,0.00017534,2]
[363424565,1748721045694,-1421.45,0.00017534,2]
[363424567,1748721045703,-1689.57,0.00017534,2]
[363424569,1748721045712,-151.0,0.00017534,2]
[363424571,1748721045721,-853.47,0.00017534,2]
[363424572,1748721045731,-430.0,0.00017534,2]
[363424575,1748721045741,-696.83,0.00017534,2]
[363424577,1748721045750,-430.0,0.00017534,2]
[363424579,1748721045759,-2114.45,0.00017534,2]
[363424581,1748721045773,-430.0,0.00017534,2]
[363424583,1748721045782,-430.0,0.00017534,2]
[363424585,1748721045791,-430.0,0.00017534,2]
[363424587,1748721045801,-430.0,0.00017534,2]
[363424589,1748721045811,-1160.86,0.00017534,2]
[363424591,1748721045820,-657.57,0.00017534,2]
[363424593,1748721045830,-430.0,0.00017534,2]
[363424595,1748721045839,-1000.0,0.00017678,7]
[363424597,1748721045850,-1000.0,0.00017678,7]
[363424599,1748721045861,-1000.0,0.00017678,2]
[363424602,1748721045870,-1000.0,0.00017691,7]
[363424605,1748721045879,-1000.0,0.00017691,7]
[363424608,1748721045888,-1000.0,0.00017691,7]
[363424611,1748721045898,-1000.0,0.00017691,7]
[363424614,1748721045907,-1000.0,0.00017691,7]
[363424617,1748721045916,-1000.0,0.00017691,7]
[363424621,1748721045926,-1000.0,0.00017691,7]
[363424623,1748721045935,-1000.0,0.00017691,7]
[363424626,1748721045945,-1000.0,0.00017691,7]
[363424629,1748721045955,-1000.0,0.00017691,7]
[363424632,1748721045965,-314.84782018,0.00017691,7]
[363424635,1748721045974,-842.5625,0.00017691,7]
[363424638,1748721045984,-212.77096907,0.00017691,7]
[363424640,1748721045993,-1000.0,0.00017691,2]
[363424643,1748721046002,-1000.0,0.00017691,2]
[363424646,1748721046012,-1000.0,0.00017691,2]
[363424649,1748721046021,-1000.0,0.00017691,2]
[363424652,1748721046030,-1000.0,0.00017691,2]
[363424655,1748721046040,-1000.0,0.00017691,2]
[363424658,1748721046049,-1000.0,0.00017691,2]
[363424661,1748721046059,-1000.0,0.00017691,2]
[363424665,1748721046069,-1000.0,0.00017691,2]
[363424668,1748721046080,-1000.0,0.00017691,2]
[363424670,1748721046089,-152.155661,0.00017691,2]
[363424674,1748721046099,-151.0,0.00017691,2]
[363424677,1748721046108,-151.0,0.00017691,2]
[363424679,1748721046118,-151.0,0.00017691,2]
[363424684,1748721046128,-151.0,0.00017691,2]
[363424687,1748721046137,-600.639956,0.00017691,2]
[363424690,1748721046147,-151.0,0.00017691,2]
[363424693,1748721046157,-600.639956,0.00017691,2]
[363424696,1748721046166,-151.0,0.00017691,2]
[363424698,1748721046175,-314.5372,0.00017691,2]
[363424701,1748721046185,-314.5372,0.00017691,2]
[363424704,1748721046194,-187.750318,0.00017691,2]
[363424707,1748721046203,-277.170479,0.00017691,2]
[363424710,1748721046213,-187.750318,0.00017691,2]
[363424713,1748721046223,-277.170479,0.00017691,2]
[363424716,1748721046233,-151.0,0.00017691,2]
[363424719,1748721046242,-151.0,0.00017691,2]
[363424723,1748721046252,-5000.0,0.00017697,2]
[363424725,1748721046261,-814.93536587,0.00017728,2]
[363424728,1748721046271,-212.77096907,0.00017738,2]
[363424732,1748721046280,-229.3428821,0.00017738,2]
[363424734,1748721046290,-842.5625,0.00017738,2]
[363424736,1748721046299,-423.4608169,0.00017738,2]
[363424738,1748721046308,-160.0,0.00017738,2]
[363424741,1748721046317,-160.0,0.00017738,2]
[363424744,1748721046325,-314.84782018,0.00017742,2]
[363424747,1748721046335,-12664.98044988,0.00017742,2]
[363424750,1748721046344,-1193.54,0.00017798,3]
[363424753,1748721046353,-596.78,0.00017798,3]
[363424755,1748721046362,-430.0,0.00017808,2]
[363424757,1748721046371,-151.0,0.00017808,2]
[363424759,1748721046380,-151.0,0.00017808,2]
[363424761,1748721046389,-151.0,0.00017808,2]
[363424763,1748721046398,-151.0,0.00017808,2]
[363424765,1748721046407,-430.0,0.00017808,2]
[363424767,1748721046416,-430.0,0.00017808,2]
[363424769,1748721046425,-430.0,0.00017808,2]
[363424771,1748721046433,-430.0,0.00017808,2]
[363424773,1748721046443,-430.0,0.00017808,2]
[363424775,1748721046452,-430.0,0.00017808,2]
[363424777,1748721046462,-430.0,0.00017808,2]
[363424779,1748721046472,-980.1,0.00017808,2]
[363424781,1748721046481,-430.0,0.00017808,2]
[363424783,1748721046491,-430.0,0.00017808,2]
[363424785,1748721046500,-430.0,0.00017808,2]
[363424787,1748721046509,-430.0,0.00017808,2]
[363424789,1748721046519,-430.0,0.00017808,2]
[363424791,1748721046528,-430.0,0.00017808,2]
[363424793,1748721046537,-430.0,0.00017808,2]
[363424795,1748721046547,-1448.02,0.00017808,2]
[363424797,1748721046556,-430.0,0.00017808,2]
[363424799,1748721046566,-1183.07,0.00017808,2]
[363424801,1748721046577,-1735.84,0.00017808,2]
[363424803,1748721046586,-1885.75,0.00017808,2]
[363424805,1748721046596,-2122.85,0.00017808,2]
[363424807,1748721046605,-430.0,0.00017808,2]
[363424809,1748721046614,-445.17,0.00017808,2]
[363424811,1748721046623,-430.0,0.00017808,2]
[363424813,1748721046633,-3012.31,0.00017808,2]
[363424815,1748721046643,-842.52,0.00017808,2]
[363424817,1748721046652,-430.0,0.00017808,2]
[363424820,1748721046661,-430.0,0.00017808,2]
[363424822,1748721046671,-2477.92,0.00017808,2]
[363424824,1748721046684,-430.0,0.00017808,2]
[363424826,1748721046693,-1209.38,0.00017808,2]
[363424828,1748721046702,-430.0,0.00017808,2]
[363424830,1748721046711,-743.56,0.00017808,2]
[363424832,1748721046721,-430.0,0.00017808,2]
[363424834,1748721046732,-430.0,0.00017808,2]
[363424837,1748721046742,-430.0,0.00017808,2]
[363424840,1748721046752,-1121.54,0.00017808,2]
[363424842,1748721046761,-430.0,0.00017808,2]
[363424844,1748721046772,-430.0,0.00017808,2]
[363424846,1748721046783,-1421.45,0.00017808,2]
[363424848,1748721046792,-1689.57,0.00017808,2]
[363424850,1748721046801,-853.47,0.00017808,2]
[363424852,1748721046811,-430.0,0.00017808,2]
[363424854,1748721046821,-696.83,0.00017808,2]
[363424856,1748721046830,-430.0,0.00017808,2]
[363424858,1748721046839,-2114.45,0.00017808,2]
[363424860,1748721046848,-430.0,0.00017808,2]
[363424862,1748721046858,-430.0,0.00017808,2]
[363424864,1748721046868,-430.0,0.00017808,2]
[363424866,1748721046877,-356.45,0.00017808,2]
[363424868,1748721046886,-1160.86,0.00017808,2]
[363424870,1748721046896,-657.57,0.00017808,2]
[363424872,1748721046906,-430.0,0.00017808,2]
[363424875,1748721046916,-2056.29148393,0.00017845,2]
[363424877,1748721046925,-420.0,0.00017856,2]
[363424879,1748721046934,-814.93536587,0.00018003,2]